lending/lending_fUSD_20250121
["ID","MTS","AMOUNT","RATE_DAILY","PERIOD"]
[349772930,1737420647287,-500.0,0.00019725,2]
[349772931,1737420647297,-566.19,0.00019725,2]
[349772932,1737420647307,-500.0,0.00019725,2]
[349772933,1737420647316,-529.83,0.00019725,2]
[349772934,1737420647326,-500.0,0.00019725,2]
[349772935,1737420647335,-1013.61,0.00019725,2]
[349772936,1737420647344,-564.16,0.00019725,2]
[349772937,1737420647354,-606.85,0.00019725,2]
[349772938,1737420647363,-796.12,0.00019725,2]
[349772939,1737420647372,-500.0,0.00019725,2]
[349772940,1737420647382,-500.0,0.00019725,2]
[349772941,1737420647391,-500.0,0.00019725,2]
[349772942,1737420647400,-1154.51,0.00019725,2]
[349772943,1737420647409,-500.0,0.00019725,2]
[349772944,1737420647422,-500.0,0.00019725,2]
[349772945,1737420647431,-508.3901249,0.00019725,2]
[349772946,1737420647441,-2225.1,0.00019725,2]
[349772947,1737420647451,-882.93,0.00019725,2]
[349772948,1737420647460,-1343.47,0.00019725,2]
[349772949,1737420647470,-881.44,0.00019725,2]
[349772950,1737420647480,-2159.62,0.00019725,2]
[349772951,1737420647489,-500.0,0.00019725,2]
[349772952,1737420647499,-3061.98,0.00019725,2]
[349772953,1737420647508,-610.57,0.00019725,2]
[349772954,1737420647518,-1451.25,0.00019725,2]
[349772955,1737420647527,-500.0,0.00019725,2]
[349772956,1737420647536,-980.84,0.00019725,2]
[349772957,1737420647545,-2840.37,0.00019725,2]
[349772958,1737420647554,-500.0,0.00019725,2]
[349772959,1737420647564,-958.08,0.00019725,2]
[349772960,1737420647573,-1204.91,0.00019725,2]
[349772961,1737420647582,-500.0,0.00019725,2]
[349772962,1737420647591,-500.0,0.00019725,2]
[349772963,1737420647601,-997.28,0.00019725,2]
[349772964,1737420647611,-1712.99,0.00019725,2]
[349772965,1737420647620,-500.0,0.00019725,2]
[349772966,1737420647629,-3603.52,0.00019725,2]
[349772967,1737420647639,-1254.23,0.00019725,2]
[349772968,1737420647648,-500.0,0.00019725,2]
[349772969,1737420647657,-500.0,0.00019725,2]
[349772970,1737420647667,-500.0,0.00019725,2]
[349772971,1737420647676,-500.0,0.00019725,2]
[349772972,1737420647686,-500.0,0.00019725,2]
[349772973,1737420647695,-500.0,0.00019725,2]
[349772974,1737420647705,-500.0,0.00019725,2]
[349772975,1737420647714,-500.0,0.00019725,2]
[349772976,1737420647723,-1445.2,0.00019725,2]
[349772977,1737420647732,-549.87,0.00019725,2]
[349772978,1737420647742,-500.0,0.00019725,2]
[349772979,1737420647752,-500.0,0.00019725,2]
[349772980,1737420647761,-693.42,0.00019725,2]
[349772981,1737420647771,-1915.82,0.00019725,2]
[349772982,1737420647781,-500.0,0.00019725,2]
[349772983,1737420647791,-513.39,0.00019725,2]
[349772984,1737420647801,-1417.44,0.00019725,2]
[349772985,1737420647811,-500.0,0.00019725,2]
[349772986,1737420647945,-500.0,0.00019725,2]
[349772987,1737420647954,-500.0,0.00019725,2]
[349772988,1737420647963,-217.72107828,0.00019725,2]
[349772989,1737420647973,-500.0,0.00019725,2]
[349772990,1737420647982,-513.16602958,0.00019726,2]
[349772991,1737420647991,-513.17635972,0.00019726,2]
[349772992,1737420648000,-500.0,0.00019726,2]
[349772993,1737420648009,-500.0,0.00019726,2]
[349772994,1737420648018,-500.0,0.00019726,2]
[349772995,1737420648027,-500.0,0.00019726,2]
[349772996,1737420648037,-500.0,0.00019726,2]
[349772997,1737420648046,-500.0,0.00019726,2]
[349772998,1737420648055,-500.0,0.00019726,2]
[349772999,1737420648065,-500.0,0.00019726,2]
[349773000,1737420648075,-258.16032906,0.00019726,2]
[349773001,1737420648085,-500.0,0.00019726,2]
[349773002,1737420648095,-321.46,0.00019726,2]
[349773003,1737420648105,-244.07100294,0.00019726,2]
[349773004,1737420648114,-500.0,0.00019726,2]
[349773005,1737420648125,-500.0,0.00019726,2]
[349773006,1737420648135,-500.0,0.00019726,2]
[349773007,1737420648144,-500.0,0.00019726,2]
[349773008,1737420648154,-383.05030952,0.00019726,2]
[349773009,1737420648164,-500.0,0.00019726,2]
[349773010,1737420648175,-500.0,0.00019726,2]
[349773011,1737420648185,-500.0,0.00019726,2]
[349773012,1737420648195,-500.0,0.00019726,2]
[349773013,1737420648206,-500.0,0.00019726,2]
[349773014,1737420648220,-500.0,0.00019726,2]
[349773015,1737420648229,-500.0,0.00019726,2]
[349773016,1737420648238,-546.6052474,0.00019726,2]
[349773017,1737420648248,-500.0,0.00019726,2]
[349773018,1737420648258,-500.0,0.00019726,2]
[349773019,1737420648269,-500.0,0.00019726,2]
[349773020,1737420648278,-500.0,0.00019726,2]
[349773021,1737420648288,-500.0,0.00019726,2]
[349773022,1737420648298,-500.0,0.00019726,2]
[349773023,1737420648307,-500.0,0.00019726,2]
[349773024,1737420648317,-500.0,0.00019726,2]
[349773025,1737420648327,-500.0,0.00019726,2]
[349773026,1737420648336,-500.0,0.00019726,2]
[349773027,1737420648345,-500.0,0.00019726,2]
[349773028,1737420648354,-500.0,0.00019726,2]
[349773029,1737420648364,-500.0,0.00019726,2]
[349773030,1737420648373,-500.0,0.00019726,2]
[349773031,1737420648383,-500.0,0.00019726,2]
[349773032,1737420648391,-500.0,0.00019726,2]
[349773033,1737420648401,-500.0,0.00019726,2]
[349773034,1737420648410,-500.0,0.00019726,2]
[349773035,1737420648421,-500.0,0.00019726,2]
[349773036,1737420648430,-500.0,0.00019726,2]
[349773037,1737420648440,-500.0,0.00019726,2]
[349773038,1737420648450,-500.0,0.00019726,2]
[349773039,1737420648459,-500.0,0.00019726,2]
[349773040,1737420648468,-500.0,0.00019726,2]
[349773041,1737420648477,-500.0,0.00019726,2]
[349773042,1737420648486,-500.0,0.00019726,2]
[349773043,1737420648495,-500.0,0.00019726,2]
[349773044,1737420648505,-500.0,0.00019726,2]
[349773045,1737420648514,-500.0,0.00019726,2]
[349773046,1737420648523,-500.0,0.00019726,2]
[349773047,1737420648532,-500.0,0.00019726,2]
[349773048,1737420648541,-500.0,0.00019726,2]
[349773049,1737420648550,-500.0,0.00019726,2]
[349773050,1737420648560,-500.0,0.00019726,2]
[349773051,1737420648570,-500.0,0.00019726,2]
[349773052,1737420648580,-500.0,0.00019726,2]
[349773053,1737420648590,-500.0,0.00019726,2]
[349773054,1737420648599,-500.0,0.00019726,2]
[349773055,1737420648609,-271.53586435,0.00019726,2]
[349773056,1737420648618,-500.0,0.00019726,2]
[349773057,1737420648627,-500.0,0.00019726,2]
[349773058,1737420648636,-500.0,0.00019726,2]
[349773059,1737420648645,-500.0,0.00019726,2]
[349773060,1737420648654,-583.33,0.00019726,2]
[349773061,1737420648667,-500.0,0.00019726,2]
[349773062,1737420648676,-604.16,0.00019726,2]
[349773063,1737420648685,-500.0,0.00019726,2]
[349773064,1737420648695,-664.29,0.00019726,2]
[349773065,1737420648704,-500.0,0.00019726,2]
[349773066,1737420648714,-500.0,0.00019726,2]
[349773067,1737420648723,-500.0,0.00019726,2]
[349773068,1737420648733,-500.0,0.00019726,2]
[349773069,1737420648742,-500.0,0.00019726,2]
[349773070,1737420648752,-500.0,0.00019726,2]
[349773071,1737420648761,-500.0,0.00019726,2]
[349773072,1737420648771,-500.0,0.00019726,2]
[349773073,1737420648781,-500.0,0.00019726,2]
[349773074,1737420648790,-478.02307022,0.00019726,2]
[349773075,1737420648800,-500.0,0.00019726,2]
[349773076,1737420648810,-500.0,0.00019726,2]
[349773077,1737420648820,-560.89,0.00019726,2]
[349773078,1737420648829,-500.0,0.00019726,2]
[349773079,1737420648838,-500.0,0.00019726,2]
[349773080,1737420648848,-500.0,0.00019726,2]
[349773081,1737420648857,-500.0,0.00019726,2]
[349773082,1737420648867,-500.0,0.00019726,2]
[349773083,1737420648877,-500.0,0.00019726,2]
[349773084,1737420648886,-500.0,0.00019726,2]
[349773085,1737420648896,-500.0,0.00019726,2]
[349773086,1737420648906,-500.0,0.00019726,2]
[349773087,1737420648916,-500.0,0.00019726,2]
[349773088,1737420648926,-500.0,0.00019726,2]
[349773089,1737420648935,-588.71,0.00019726,2]
[349773090,1737420648945,-500.0,0.00019726,2]
[349773091,1737420648955,-500.0,0.00019726,2]
[349773092,1737420648965,-500.0,0.00019726,2]
[349773093,1737420648975,-500.0,0.00019726,2]
[349773094,1737420648986,-500.0,0.00019726,2]
[349773095,1737420648996,-500.0,0.00019726,2]
[349773096,1737420649006,-514.25260461,0.00019726,2]
[349773097,1737420649016,-500.0,0.00019726,2]
[349773098,1737420649026,-500.0,0.00019726,2]
[349773099,1737420649036,-500.0,0.00019726,2]
[349773100,1737420649045,-500.0,0.00019726,2]
[349773101,1737420649055,-1697.86,0.00019726,2]
[349773102,1737420649065,-500.0,0.00019726,2]
[349773103,1737420649075,-500.0,0.00019726,2]
[349773104,1737420649085,-500.0,0.00019726,2]
[349773105,1737420649094,-659.43,0.00019726,2]
[349773106,1737420649103,-500.0,0.00019726,2]
[349773107,1737420649113,-500.0,0.00019726,2]
[349773108,1737420649123,-516.04565291,0.00019726,2]
[349773109,1737420649133,-500.0,0.00019726,2]
[349773110,1737420649143,-500.0,0.00019726,2]
[349773111,1737420649152,-716.849871,0.00019726,2]
[349773112,1737420649161,-500.0,0.00019726,2]
[349773113,1737420649178,-500.0,0.00019726,2]
[349773114,1737420649187,-500.0,0.00019726,2]
[349773115,1737420649198,-500.0,0.00019726,2]
[349773116,1737420649208,-500.0,0.00019726,2]
[349773117,1737420649220,-500.0,0.00019726,2]
[349773118,1737420649231,-500.0,0.00019726,2]
[349773119,1737420649241,-500.0,0.00019726,2]
[349773120,1737420649251,-506.96,0.00019726,2]
[349773121,1737420649262,-1515.28,0.00019726,2]
[349773122,1737420649275,-500.0,0.00019726,2]
[349773123,1737420649285,-500.0,0.00019726,2]
[349773124,1737420649295,-487.986546,0.00019726,2]
[349773125,1737420649308,-500.0,0.00019726,2]
[349773126,1737420649318,-500.0,0.00019726,2]
[349773127,1737420649327,-500.0,0.00019726,2]
[349773128,1737420649337,-500.0,0.00019726,2]
[349773129,1737420649347,-500.0,0.00019726,2]
[349773130,1737420649357,-500.0,0.00019726,2]
[349773131,1737420649367,-500.0,0.00019726,2]
[349773132,1737420649377,-500.0,0.00019726,2]
[349773133,1737420649387,-500.0,0.00019726,2]
[349773134,1737420649397,-1653.02,0.00019726,2]
[349773135,1737420649407,-845.58,0.00019726,2]
[349773136,1737420649421,-500.0,0.00019726,2]
[349773137,1737420649430,-500.0,0.00019726,2]
[349773138,1737420649439,-500.0,0.00019726,2]
[349773139,1737420649449,-500.0,0.00019726,2]
[349773140,1737420649459,-500.0,0.00019726,2]
[349773141,1737420649469,-1027.64,0.00019726,2]
[349773142,1737420649478,-969.02,0.00019726,2]
[349773143,1737420649488,-500.0,0.00019726,2]
[349773144,1737420649497,-500.0,0.00019726,2]
[349773145,1737420649507,-500.0,0.00019726,2]
[349773146,1737420649516,-1967.24,0.00019726,2]
[349773147,1737420649525,-1111.37,0.00019726,2]
[349773148,1737420649537,-500.0,0.00019726,2]
[349773149,1737420649547,-500.0,0.00019726,2]
[349773150,1737420649556,-898.19,0.00019726,2]
[349773151,1737420649565,-500.0,0.00019726,2]
[349773152,1737420649575,-513.86874534,0.00019726,2]
[349773153,1737420649584,-500.0,0.00019726,2]
[349773154,1737420649593,-1226.71,0.00019726,2]
[349773155,1737420649602,-652.51,0.00019726,2]
[349773156,1737420649612,-619.63,0.00019726,2]
[349773157,1737420649620,-1210.94,0.00019726,2]
[349773158,1737420649630,-500.0,0.00019726,2]
[349773159,1737420649639,-1000.0,0.00019726,14]
[349773160,1737420649648,-801.67,0.00019726,2]
[349773161,1737420649657,-500.0,0.00019726,2]
[349773162,1737420649669,-500.0,0.00019726,2]
[349773163,1737420649678,-500.0,0.00019726,2]
[349773164,1737420649687,-500.0,0.00019726,2]
[349773165,1737420649696,-548.07022243,0.00019726,2]
[349773166,1737420649710,-2052.29,0.00019726,2]
[349773167,1737420649720,-513.12,0.00019726,2]
[349773168,1737420649729,-1991.53,0.00019726,2]
[349773169,1737420649738,-500.0,0.00019726,2]
[349773170,1737420649748,-1181.16,0.00019726,2]
[349773171,1737420649757,-152.06599502,0.00019726,2]
[349773172,1737420649766,-500.0,0.00019726,2]
[349773173,1737420649776,-1416.54,0.00019726,2]
[349773174,1737420649784,-500.0,0.00019726,2]
[349773175,1737420649794,-500.0,0.00019726,2]
[349773176,1737420649803,-2319.77,0.00019726,2]
[349773177,1737420649812,-780.49,0.00019726,2]
[349773178,1737420649822,-513.43,0.00019726,2]
[349773179,1737420649831,-2547.64,0.00019726,2]
[349773180,1737420649840,-500.0,0.00019726,2]
[349773181,1737420649849,-556.06,0.00019726,2]
[349773182,1737420649859,-1503.59,0.00019726,2]
[349773183,1737420649869,-500.0,0.00019726,2]
[349773184,1737420649879,-826.66,0.00019726,2]
[349773185,1737420649888,-500.0,0.00019726,2]
[349773186,1737420649897,-500.0,0.00019726,2]
[349773187,1737420649907,-1204.67,0.00019726,2]
[349773188,1737420649919,-883.4,0.00019726,2]
[349773189,1737420649928,-500.0,0.00019726,2]
[349773190,1737420649938,-500.0,0.00019726,2]
[349773191,1737420649947,-500.0,0.00019726,2]
[349773192,1737420649956,-500.0,0.00019726,2]
[349773193,1737420649965,-196.09940862,0.00019726,2]
[349773194,1737420649974,-1126.47,0.00019726,2]
[349773195,1737420649983,-633.24,0.00019726,2]
[349773196,1737420649993,-2671.26,0.00019726,2]
[349773197,1737420650002,-548.00344852,0.00019726,2]
[349773198,1737420650012,-500.0,0.00019726,2]
[349773199,1737420650022,-2393.16,0.00019726,2]
[349773200,1737420650031,-500.0,0.00019726,2]
[349773201,1737420650040,-603.06,0.00019726,2]
[349773202,1737420650050,-500.0,0.00019726,2]
[349773203,1737420650059,-500.0,0.00019726,2]
[349773204,1737420650068,-500.0,0.00019726,2]
[349773205,1737420650077,-500.0,0.00019726,2]
[349773206,1737420650087,-500.0,0.00019726,2]
[349773207,1737420650096,-500.0,0.00019726,2]
[349773208,1737420650106,-500.0,0.00019726,2]
[349773209,1737420650115,-500.0,0.00019726,2]
[349773210,1737420650125,-500.0,0.00019726,2]
[349773211,1737420650134,-582.27,0.00019726,2]
[349773212,1737420650143,-1857.25,0.00019726,2]
[349773213,1737420650152,-2242.43,0.00019726,2]
[349773214,1737420650161,-388.24907619,0.00019745,2]
[349773215,1737420650174,-500.0,0.00019773,2]
[349773216,1737420650183,-162.446685,0.00019773,2]
[349773217,1737420650192,-150.96267455,0.00019773,2]
[349773218,1737420650202,-151.0,0.00019848,2]
[349773219,1737420650211,-507.31216062,0.00019866,2]
[349773220,1737420650224,-673.02,0.00019866,2]
[349773221,1737420650233,-500.0,0.00019866,2]
[349773222,1737420650242,-500.0,0.00019866,2]
[349773223,1737420650251,-19075.48069027,0.00019893,2]
[349773224,1737420650265,-654.67928514,0.00019899,2]
[349773225,1737420650276,-2016.22379925,0.00019899,2]
[349773226,1737420650286,-1482.97,0.00019899,2]
[349773227,1737420650296,-500.0,0.00019899,2]
[349773228,1737420650306,-1199.3,0.00019899,2]
[349773229,1737420650315,-551.03,0.00019899,2]
[349773230,1737420650324,-2292.14,0.00019899,2]
[349773231,1737420650333,-500.0,0.00019899,2]
[349773232,1737420650342,-500.0,0.00019899,2]
[349773233,1737420650351,-500.0,0.00019899,2]
[349773234,1737420650360,-500.0,0.00019899,2]
[349773235,1737420650370,-500.0,0.00019899,2]
[349773236,1737420650379,-500.0,0.00019899,2]
[349773237,1737420650389,-753.81,0.00019899,2]
[349773238,1737420650398,-597.97,0.00019899,2]
[349773239,1737420650407,-750.01,0.00019899,2]
[349773240,1737420650418,-652.84,0.00019899,2]
[349773241,1737420650549,-1174.84,0.00019899,2]
[349773242,1737420650559,-2187.02,0.00019899,2]
[349773243,1737420650568,-848.77,0.00019899,2]
[349773244,1737420650577,-1671.37,0.00019899,2]
[349773245,1737420650587,-3969.98,0.00019899,2]
[349773246,1737420650596,-500.0,0.00019899,2]
[349773247,1737420650605,-634.19,0.00019899,2]
[349773248,1737420650615,-3283.45,0.00019899,2]
[349773249,1737420650624,-1093.65,0.00019899,2]
[349773250,1737420650633,-654.71,0.00019899,2]
[349773251,1737420650642,-2167.64,0.00019899,2]
[349773252,1737420650651,-636.22,0.00019899,2]
[349773253,1737420650660,-500.0,0.00019899,2]
[349773254,1737420650671,-709.4,0.00019899,2]
[349773255,1737420650681,-1498.52,0.00019899,2]
[349773256,1737420650690,-1044.91,0.00019899,2]
[349773257,1737420650699,-1345.86,0.00019899,2]
[349773258,1737420650708,-500.0,0.00019899,2]
[349773259,1737420650717,-966.72,0.00019899,2]
[349773260,1737420650726,-1000.0,0.00019899,2]
[349773261,1737420650735,-1312.72,0.00019899,2]
[349773262,1737420650744,-615.08,0.00019899,2]
[349773263,1737420650753,-1967.56,0.00019899,2]
[349773264,1737420650762,-230.8118101,0.000199,2]
[349773265,1737420650771,-150.0,0.00019954,2]
[349773266,1737420650780,-230.81181001,0.00019969,2]
[349773267,1737420650789,-500.0,0.00019999,2]
[349773268,1737420650799,-541.66,0.00019999,2]
[349773269,1737420650808,-500.0,0.00019999,2]
[349773270,1737420650817,-1183.9,0.00019999,2]
[349773271,1737420650826,-505.3,0.00019999,2]
[349773272,1737420650835,-500.0,0.00019999,2]
[349773273,1737420650846,-500.0,0.00019999,2]
[349773274,1737420650855,-580.30973532,0.00019999,2]
[349773275,1737420650864,-500.0,0.00019999,2]
[349773276,1737420650873,-500.0,0.00019999,2]
[349773277,1737420650884,-500.0,0.00019999,2]
[349773278,1737420650896,-500.0,0.00019999,2]
[349773279,1737420650908,-500.0,0.00019999,2]
[349773280,1737420650919,-501.19,0.00019999,2]
[349773281,1737420650928,-500.0,0.00019999,2]
[349773282,1737420650937,-500.0,0.00019999,2]
[349773283,1737420650946,-500.0,0.00019999,2]
[349773284,1737420650955,-530.22295028,0.00019999,2]
[349773285,1737420650964,-500.0,0.00019999,2]
[349773286,1737420650973,-500.0,0.00019999,2]
[349773287,1737420650985,-500.0,0.00019999,2]
[349773288,1737420650995,-500.0,0.00019999,2]
[349773289,1737420651004,-500.0,0.00019999,2]
[349773290,1737420651013,-500.0,0.00019999,2]
[349773291,1737420651023,-500.0,0.00019999,2]
[349773292,1737420651032,-500.0,0.00019999,2]
[349773293,1737420651041,-500.0,0.00019999,2]
[349773294,1737420651050,-500.0,0.00019999,2]
[349773295,1737420651060,-572.63,0.00019999,2]
[349773296,1737420651069,-500.0,0.00019999,2]
[349773297,1737420651078,-500.0,0.00019999,2]
[349773298,1737420651087,-500.0,0.00019999,2]
[349773299,1737420651096,-500.0,0.00019999,2]
[349773300,1737420651105,-500.0,0.00019999,2]
[349773301,1737420651114,-569.92,0.00019999,2]
[349773302,1737420651123,-500.0,0.00019999,2]
[349773303,1737420651132,-500.0,0.00019999,2]
[349773304,1737420651141,-500.0,0.00019999,2]
[349773305,1737420651150,-500.0,0.00019999,2]
[349773306,1737420651159,-500.0,0.00019999,2]
[349773307,1737420651171,-500.0,0.00019999,2]
[349773308,1737420651179,-500.0,0.00019999,2]
[349773309,1737420651189,-687.02,0.00019999,2]
[349773310,1737420651197,-500.0,0.00019999,2]
[349773311,1737420651206,-500.0,0.00019999,2]
[349773312,1737420651219,-500.0,0.00019999,2]
[349773313,1737420651228,-231.47586482,0.00019999,2]
[349773314,1737420651237,-500.0,0.00019999,2]
[349773315,1737420651246,-668.45,0.00019999,2]
[349773316,1737420651257,-650.98,0.00019999,2]
[349773317,1737420651266,-563.68,0.00019999,2]
[349773318,1737420651275,-500.0,0.00019999,2]
[349773319,1737420651284,-500.0,0.00019999,2]
[349773320,1737420651295,-566.19,0.00019999,2]
[349773321,1737420651304,-500.0,0.00019999,2]
[349773322,1737420651314,-529.83,0.00019999,2]
[349773323,1737420651323,-500.0,0.00019999,2]
[349773324,1737420651332,-1013.61,0.00019999,2]
[349773325,1737420651341,-564.16,0.00019999,2]
[349773326,1737420651350,-606.85,0.00019999,2]
[349773327,1737420651359,-796.12,0.00019999,2]
[349773328,1737420651368,-500.0,0.00019999,2]
[349773329,1737420651378,-500.0,0.00019999,2]
[349773330,1737420651387,-1154.51,0.00019999,2]
[349773331,1737420651396,-500.0,0.00019999,2]
[349773332,1737420651406,-2225.1,0.00019999,2]
[349773333,1737420651415,-882.93,0.00019999,2]
[349773334,1737420651425,-1343.47,0.00019999,2]
[349773335,1737420651435,-881.44,0.00019999,2]
[349773336,1737420651444,-2159.62,0.00019999,2]
[349773337,1737420651454,-3061.98,0.00019999,2]
[349773338,1737420651463,-610.57,0.00019999,2]
[349773339,1737420651472,-1451.25,0.00019999,2]
[349773340,1737420651482,-500.0,0.00019999,2]
[349773341,1737420651491,-980.84,0.00019999,2]
[349773342,1737420651500,-2840.37,0.00019999,2]
[349773343,1737420651510,-958.08,0.00019999,2]
[349773344,1737420651520,-1204.91,0.00019999,2]
[349773345,1737420651529,-500.0,0.00019999,2]
[349773346,1737420651539,-500.0,0.00019999,2]
[349773347,1737420651549,-997.28,0.00019999,2]
[349773348,1737420651560,-1712.99,0.00019999,2]
[349773349,1737420651569,-212.92632302,0.00019999,2]
[349773350,1737420651579,-3603.52,0.00019999,2]
[349773351,1737420651589,-1254.23,0.00019999,2]
[349773352,1737420651599,-500.0,0.00019999,2]
[349773353,1737420651609,-500.0,0.00019999,2]
[349773354,1737420651618,-500.0,0.00019999,2]
[349773355,1737420651627,-500.0,0.00019999,2]
[349773356,1737420651636,-500.0,0.00019999,2]
[349773357,1737420651645,-500.0,0.00019999,2]
[349773358,1737420651655,-1445.2,0.00019999,2]
[349773359,1737420651664,-549.87,0.00019999,2]
[349773360,1737420651679,-500.0,0.00019999,2]
[349773361,1737420651688,-500.0,0.00019999,2]
[349773362,1737420651697,-693.42,0.00019999,2]
[349773363,1737420651707,-1915.82,0.00019999,2]
[349773364,1737420651717,-500.0,0.00019999,2]
[349773365,1737420651727,-513.39,0.00019999,2]
[349773366,1737420651736,-1417.44,0.00019999,2]
[349773367,1737420651746,-500.0,0.00019999,2]
[349773368,1737420651756,-500.0,0.00019999,2]
[349773369,1737420651765,-500.0,0.00019999,2]
[349773370,1737420651775,-500.0,0.00019999,2]
[349773371,1737420651785,-260.0,0.0002,2]
[349773372,1737420651796,-500.0,0.0002,2]
[349773373,1737420651806,-500.0,0.0002,2]
[349773374,1737420651815,-500.0,0.0002,2]
[349773375,1737420651825,-500.0,0.0002,2]
[349773376,1737420651835,-257.66628731,0.0002,2]
[349773377,1737420651845,-500.0,0.0002,2]
[349773378,1737420651854,-500.0,0.0002,2]
[349773379,1737420651863,-500.0,0.0002,2]
[349773380,1737420651872,-12557.82,0.0002,3]
[349773381,1737420651881,-500.0,0.0002,2]
[349773382,1737420651891,-500.0,0.0002,2]
[349773383,1737420651900,-500.0,0.0002,2]
[349773384,1737420651910,-500.0,0.0002,2]
[349773385,1737420651924,-500.0,0.0002,2]
[349773386,1737420651935,-500.0,0.0002,2]
[349773387,1737420651945,-500.0,0.0002,2]
[349773388,1737420651956,-500.0,0.0002,2]
[349773389,1737420651966,-500.0,0.0002,2]
[349773390,1737420651976,-500.0,0.0002,2]
[349773391,1737420651985,-500.0,0.0002,2]
[349773392,1737420651995,-500.0,0.0002,2]
[349773393,1737420652005,-500.0,0.0002,2]
[349773394,1737420652015,-500.0,0.0002,2]
[349773395,1737420652025,-500.0,0.0002,2]
[349773396,1737420652034,-500.0,0.0002,2]
[349773397,1737420652044,-322.46005771,0.0002,2]
[349773398,1737420652055,-500.0,0.0002,2]
[349773399,1737420652065,-367.16816725,0.0002,2]
[349773400,1737420652074,-500.0,0.0002,2]
[349773401,1737420652084,-370.97750126,0.0002,2]
[349773402,1737420652093,-500.0,0.0002,2]
[349773403,1737420652103,-500.0,0.0002,2]
[349773404,1737420652114,-500.0,0.0002,2]
[349773405,1737420652123,-500.0,0.0002,2]
[349773406,1737420652133,-500.0,0.0002,2]
[349773407,1737420652142,-500.0,0.0002,2]
[349773408,1737420652151,-500.0,0.0002,2]
[349773409,1737420652161,-500.0,0.0002,2]
[349773410,1737420652174,-500.0,0.0002,2]
[349773411,1737420652184,-500.0,0.0002,2]
[349773412,1737420652194,-500.0,0.0002,2]
[349773413,1737420652203,-500.0,0.0002,2]
[349773414,1737420652214,-500.0,0.0002,2]
[349773415,1737420652226,-500.0,0.0002,2]
[349773416,1737420652235,-500.0,0.0002,2]
[349773417,1737420652245,-500.0,0.0002,2]
[349773418,1737420652254,-172.72204773,0.0002,2]
[349773419,1737420652265,-500.0,0.0002,2]
[349773420,1737420652275,-357.52376095,0.0002,2]
[349773421,1737420652284,-500.0,0.0002,2]
[349773422,1737420652294,-500.0,0.0002,2]
[349773423,1737420652312,-500.0,0.0002,2]
[349773424,1737420652321,-500.0,0.0002,2]
[349773425,1737420652330,-500.0,0.0002,2]
[349773426,1737420652339,-500.0,0.0002,2]
[349773427,1737420652355,-500.0,0.0002,2]
[349773428,1737420652364,-500.0,0.0002,2]
[349773429,1737420652374,-500.0,0.0002,2]